bitfinex/quotes_SOLUSD_20240702
["timestamp","ask_amount","ask_price","bid_price","bid_amount"]
[1719946322123,20.0,153.01,152.98,6.5367]
[1719946322325,20.0,153.01,152.97,16.343]
[1719946322555,20.0,153.05,152.97,16.343]
[1719946322850,26.5339,153.05,152.99,6.536]
[1719946323047,6.5342,153.04,152.99,6.536]
[1719946323250,20.0,153.03,152.99,6.536]
[1719946324540,20.0,153.03,152.98,6.5366]
[1719946324734,6.5347,153.03,152.97,22.88]
[1719946325047,20.0,153.02,152.97,22.88]
[1719946325253,20.0,153.02,152.98,6.5367]
[1719946325441,20.0,153.02,152.98,6.4767]
[1719946327826,20.0,153.02,152.97,22.88]
[1719946328227,26.5351,153.02,152.97,22.88]
[1719946328952,20.0,153.02,152.98,6.5367]
[1719946329251,20.0,153.02,152.98,6.5365]
[1719946329560,26.5347,153.03,152.98,6.5365]
[1719946330143,20.0,153.03,153.0,6.5358]
[1719946330450,20.0,153.04,153.0,6.5358]
[1719946330632,6.5334,153.06,153.01,6.5354]
[1719946331441,6.5339,153.05,153.0,7.84296773]
[1719946331648,39.2605,153.08,152.99,16.3406]
[1719946331838,20.0,153.07,152.99,16.3406]
[1719946332450,6.5345,153.04,152.99,22.8769]
[1719946333947,6.5339,153.05,153.0,6.5359]
[1719946334342,6.5339,153.05,152.99,22.8768]
[1719946334525,6.5339,153.05,153.0,6.5358]
[1719946335757,13.45,153.03,153.0,6.5358]
[1719946336137,16.3346,153.05,152.96,16.3434]
[1719946336335,13.45,153.0,152.96,16.3434]
[1719946336661,13.45,152.99,152.96,16.3434]
[1719946337029,13.45,152.99,152.97,6.5372]
[1719946337744,6.5354,153.02,152.97,6.5372]
[1719946337947,20.0,153.01,152.97,6.5372]
[1719946339733,26.5355,153.01,152.96,22.8809]
[1719946340150,20.0,153.01,152.97,6.537]
[1719946340357,6.5353,153.02,152.97,6.537]
[1719946340558,20.0,153.01,152.97,6.537]
[1719946340939,20.0,153.01,152.98,6.5366]
[1719946341142,20.0,153.02,152.98,6.5366]
[1719946342360,20.0,153.02,152.98,16.3416]
[1719946342535,29.4615,153.08,153.02,16.3375]
[1719946342739,29.4615,153.08,153.02,22.8722]
[1719946342942,6.5336,153.06,153.01,6.5354]
[1719946343148,22.9288,153.08,152.99,22.8762]
[1719946343355,6.5339,153.05,153.0,6.5356]
[1719946343749,6.5343,153.04,152.99,22.8763]
[1719946344339,22.9288,153.08,153.01,16.3384]
[1719946344551,20.0,153.07,153.01,16.3384]
[1719946344742,6.534,153.05,153.0,6.5358]
[1719946344931,20.0,153.04,153.0,16.3396]
[1719946345135,6.5319,153.1,153.05,6.5334]
[1719946345357,21.7462,153.12,153.06,6.5332]
[1719946345559,6.5315,153.11,153.06,6.5332]
[1719946345744,6.5315,153.11,153.05,6.5336]
[1719946346138,6.5317,153.1,153.05,7.83969404]
[1719946346339,6.5317,153.1,153.05,6.5336]
[1719946346548,21.7462,153.12,153.03,6.5343]
[1719946346850,6.5327,153.08,153.03,6.5343]
[1719946347057,38.0736,153.12,153.01,16.3379]
[1719946347058,6.5322,153.09,153.04,6.5342]
[1719946348163,6.5317,153.1,153.05,6.5337]
[1719946348364,20.0,153.09,153.05,6.5337]
[1719946349147,20.0,153.1,153.05,6.5337]
[1719946349549,26.5318,153.1,153.05,6.5337]
[1719946349746,20.0,153.1,153.06,6.5332]
[1719946350068,20.0,153.1,153.07,16.3318]
[1719946350258,22.197,153.16,153.1,6.5313]
[1719946350442,22.197,153.16,153.09,22.8618]
[1719946350443,6.5299,153.14,153.09,22.8618]
[1719946350642,6.5297,153.15,153.09,22.8618]
[1719946351061,6.5301,153.14,153.09,22.8618]
[1719946352445,6.5296,153.15,153.09,22.8618]
[1719946352847,20.0,153.14,153.09,22.8618]
[1719946353052,20.0,153.14,153.07,32.6645]
[1719946353460,26.5296,153.15,153.1,6.5315]
[1719946354974,26.5296,153.15,153.09,22.8616]
[1719946356165,6.53,153.14,153.09,22.8616]
[1719946356376,6.5304,153.13,153.09,16.3297]
[1719946357754,6.5301,153.14,153.09,22.8618]
[1719946360972,26.5296,153.15,153.1,6.5316]
[1719946361759,13.44,153.12,153.1,6.5316]
[1719946362765,20.0,153.15,153.11,16.3278]
[1719946362964,20.0,153.15,153.09,13.44]
[1719946363155,13.44,153.14,153.13,22.8558]
[1719946363352,33.44,153.14,153.13,22.8558]
[1719946363552,20.0,153.14,153.13,16.3255]
[1719946364070,20.0,153.14,153.11,6.531]
[1719946364263,20.0,153.14,153.1,16.3282]
[1719946364264,13.44,153.13,153.1,16.3282]
[1719946364678,13.44,153.12,153.1,22.8597]
[1719946365774,13.44,153.12,153.1,16.3282]
[1719946365965,13.44,153.12,153.1,22.8597]
[1719946366672,13.44,153.12,153.1,16.3282]
[1719946368983,13.44,153.12,153.1,22.8597]
[1719946369671,13.44,153.12,153.1,16.3282]
[1719946371156,13.44,153.12,153.09,6.5319]
[1719946371577,26.53,153.14,153.09,6.5319]
[1719946371793,13.44,153.12,153.09,6.5319]
[1719946374189,13.44,153.12,153.07,22.864]
[1719946374357,13.44,153.1,153.08,6.5325]
[1719946374883,13.44,153.09,153.07,16.3314]
[1719946375078,13.44,153.08,153.06,6.5332]
[1719946375758,13.44,153.07,153.01,16.3379]
[1719946375983,13.44,153.04,153.01,16.3379]
[1719946376187,13.44,153.04,153.02,6.5348]
[1719946376369,13.44,153.03,153.02,6.5348]
[1719946376564,13.44,153.03,153.0,15.3554]
[1719946376875,13.44,153.03,153.01,6.5355]
[1719946378201,13.44,153.03,153.02,6.535]
[1719946379578,13.44,153.03,153.01,6.5353]
[1719946380784,13.44,153.03,153.02,6.535]
[1719946381410,6.5326,153.08,153.03,6.5345]
[1719946381579,13.44,153.05,153.03,6.5345]
[1719946382104,6.5322,153.09,153.04,6.5342]
[1719946382293,13.44,153.06,153.04,6.5342]
[1719946382703,13.44,153.07,153.05,6.5338]
[1719946382884,13.44,153.08,153.06,6.5333]
[1719946383221,33.44,153.07,153.04,22.8692]
[1719946384096,33.44,153.07,153.05,6.5337]
[1719946384907,6.078,153.13,153.06,16.333]
[1719946385109,6.5311,153.12,153.07,7.83904716]
[1719946385300,13.44,153.1,153.07,1.30644716]
[1719946385692,13.44,153.1,153.06,24.17265049]
[1719946386209,21.8898,153.14,153.09,6.5318]
[1719946386404,6.6207,153.17,153.08,22.8635]
[1719946386405,13.44,153.12,153.08,22.8635]
[1719946386603,6.5304,153.13,153.08,22.8634]
[1719946386807,13.44,153.12,153.08,22.8634]
[1719946388793,13.44,153.12,153.09,6.532]
[1719946390209,13.44,153.12,153.08,22.8634]
[1719946390408,13.44,153.11,153.08,22.8634]
[1719946392329,13.44,153.12,153.1,6.5316]
[1719946393308,7.1207,153.17,153.11,16.3281]
[1719946393926,13.44,153.13,153.11,6.5309]
[1719946395405,13.44,153.13,153.1,22.86]
[1719946396211,13.44,153.13,153.1,16.3285]
[1719946396720,7.1207,153.17,153.08,13.44]
[1719946396721,0.524,153.17,153.11,1.30611348]
[1719946396912,13.44,153.14,153.11,22.8587]
[1719946397107,13.44,153.15,153.11,22.8587]
[1719946397512,13.44,153.14,153.11,22.8587]
[1719946397926,13.44,153.13,153.11,16.3277]
[1719946398306,13.44,153.13,153.09,6.5319]
[1719946398712,13.44,153.12,153.09,6.5319]
[1719946399334,13.44,153.12,153.1,6.5316]
[1719946399832,13.44,153.13,153.1,6.5316]
[1719946400008,13.44,153.13,153.11,6.5312]
[1719946400728,13.44,153.13,153.1,6.5316]
[1719946402228,13.44,153.13,153.09,6.5319]
[1719946402449,13.44,153.11,153.08,22.8628]
[1719946402610,13.44,153.11,153.04,32.6706]
[1719946402611,13.44,153.09,153.07,6.5326]
[1719946403125,13.44,153.09,153.08,6.5325]
[1719946404132,13.44,153.1,153.08,6.5325]
[1719946404338,6.99559199,153.17,153.07,22.865]
[1719946404339,13.44,153.09,153.07,22.865]
[1719946405413,13.44,153.09,153.08,6.5325]
[1719946405631,6.5308,153.12,153.08,6.5325]
[1719946405812,13.44,153.1,153.07,22.8649]
[1719946406014,13.44,153.1,153.08,6.5324]
[1719946406426,13.44,153.1,153.07,22.8649]
[1719946407912,13.44,153.1,153.07,16.3322]
[1719946408106,13.44,153.1,153.09,6.5321]
[1719946408307,13.44,153.1,153.08,6.5323]
[1719946409601,13.44,153.1,153.09,6.5321]
[1719946409909,13.44,153.11,153.08,6.5324]
[1719946410530,13.44,153.1,153.08,6.5324]
[1719946410703,13.44,153.1,153.05,6.5334]
[1719946410909,13.44,153.08,153.04,49.0053]
[1719946411304,13.44,153.07,153.05,6.5337]
[1719946411504,6.5313,153.11,153.06,6.5333]
[1719946411732,69.8967,153.12,153.06,6.5333]
[1719946411733,26.5317,153.1,153.06,6.5333]
[1719946412101,26.5317,153.1,153.04,49.0053]
[1719946412102,26.5317,153.1,153.05,6.5336]
[1719946413947,6.5317,153.1,153.05,6.5336]
[1719946415222,6.5314,153.11,153.06,6.5332]
[1719946415431,20.0,153.1,153.06,6.5332]
[1719946419646,26.5316,153.1,153.06,6.5332]
[1719946420141,20.0,153.1,153.06,6.5332]
[1719946421817,6.5321,153.09,153.04,22.8688]
[1719946422146,20.0,153.1,153.04,16.3347]
[1719946422326,6.5317,153.1,153.05,6.5335]
[1719946423021,6.5317,153.1,153.06,6.5333]
[1719946423743,20.0,153.11,153.06,6.5333]
[1719946423946,13.44,153.09,153.06,6.5333]
[1719946424155,13.44,153.09,153.08,6.5325]
[1719946424443,13.44,153.09,153.07,6.5327]
[1719946425557,13.44,153.1,153.07,6.5327]
[1719946426629,13.44,153.09,153.07,6.5327]
[1719946427027,13.44,153.09,153.06,16.3333]
[1719946427228,20.0,153.11,153.1,6.5316]
[1719946427440,15.07240512,153.17,153.1,6.5316]
[1719946427441,6.5295,153.15,153.1,6.5316]
[1719946427623,13.44,153.13,153.1,6.5316]
[1719946429132,13.44,153.13,153.11,6.5311]
[1719946429635,6.5292,153.16,153.11,6.5311]
[1719946429955,13.44,153.14,153.11,6.5311]
[1719946434031,13.44,153.13,153.1,16.3289]
[1719946434966,13.44,153.13,153.11,6.5311]
[1719946435334,13.44,153.13,153.1,22.8604]
[1719946437053,19.9704,153.13,153.09,21.8238]
[1719946437256,13.44,153.13,153.09,21.8238]
[1719946437963,13.44,153.11,153.07,16.3316]
[1719946438135,13.44,153.1,153.07,22.8645]
[1719946439859,6.531,153.12,153.07,22.8645]
[1719946440161,13.44,153.1,153.07,22.8645]
[1719946440368,13.44,153.09,153.05,15.6901]
[1719946440566,13.44,153.09,153.06,16.3333]
[1719946440740,6.5313,153.11,153.06,16.3333]
[1719946441072,13.44,153.09,153.06,16.3333]
[1719946441542,13.44,153.09,153.07,6.5329]
[1719946441954,19.9722,153.09,153.05,15.6901]
[1719946442251,13.44,153.09,153.05,38.5581]
[1719946442450,49.70195383,153.15,153.02,15.0553]
[1719946442451,16.6134,153.13,153.02,15.0553]
[1719946442661,13.44,153.07,153.04,6.5339]
[1719946443057,6.5318,153.1,153.05,6.5336]
[1719946443258,13.44,153.08,153.03,13.44]
[1719946443441,13.44,153.08,153.05,6.5335]
[1719946443767,6.5317,153.1,153.05,6.5335]
[1719946443966,6.5313,153.11,153.06,6.5333]
[1719946444152,13.44,153.08,153.06,6.5333]
[1719946444960,13.44,153.09,153.06,6.5333]
[1719946445462,6.5309,153.12,153.08,6.5325]
[1719946445671,33.44,153.11,153.08,6.5324]
[1719946445856,13.44,153.11,153.08,6.5324]
[1719946446162,13.44,153.11,153.07,22.8649]
[1719946447045,13.44,153.11,153.08,6.5324]
[1719946448068,13.44,153.14,153.09,29.7701]
[1719946448365,19.97,153.14,153.09,29.7701]
[1719946449355,19.9705,153.13,153.09,16.3301]
[1719946449561,19.9719,153.1,153.06,22.8658]
[1719946449748,13.44,153.1,153.06,22.8658]
[1719946449950,13.44,153.1,153.07,6.5329]
[1719946450437,16.8464,153.17,153.08,6.5322]
[1719946450637,13.44,153.11,153.07,6.5328]
[1719946450859,13.44,153.1,153.06,22.8657]
[1719946451875,13.44,153.1,153.07,6.5329]
[1719946453073,15.8838,153.14,153.07,6.5329]
[1719946453074,13.44,153.12,153.08,16.3311]
[1719946453271,13.44,153.12,153.09,6.5318]
[1719946453873,13.44,153.12,153.05,16.3336]
[1719946454072,13.44,153.12,153.07,13.44]
[1719946454558,13.44,153.12,153.08,6.5322]
[1719946454878,13.44,153.11,153.08,6.5322]
[1719946455656,13.44,153.12,153.08,6.5322]
[1719946456059,15.8838,153.14,153.04,32.5643]
[1719946456269,13.44,153.1,153.05,13.44]
[1719946456565,6.5313,153.11,153.07,6.5329]
[1719946456779,13.44,153.1,153.07,6.5329]
[1719946457883,13.44,153.1,153.08,6.5325]
[1719946460475,13.44,153.11,153.08,6.5325]
[1719946461675,13.44,153.11,153.04,16.2296]
[1719946461676,8.7321263,153.17,153.04,16.2296]
[1719946461887,13.44,153.14,153.11,22.8588]
[1719946462192,13.44,153.14,153.12,6.5307]
[1719946464576,13.44,153.14,153.11,22.8589]
[1719946467112,7.0527,153.17,153.08,13.44]
[1719946467271,13.44,153.16,153.1,13.44]
[1719946467478,13.44,153.16,153.11,0.75244107]
[1719946467676,13.44,153.16,153.14,6.5298]
[1719946467993,13.44,153.16,153.13,6.5302]
[1719946468675,7.0528,153.17,153.13,6.5302]
[1719946468878,13.44,153.16,153.13,7.69736605]
[1719946469084,13.44,153.16,153.13,1.16716605]
[1719946469589,13.44,153.16,153.12,22.8567]
[1719946470096,13.44,153.16,153.13,6.5303]
[1719946470474,0.524,153.17,153.15,6.5295]
[1719946470674,0.524,153.17,153.16,6.5291]
[1719946472201,0.524,153.17,153.15,6.5294]
[1719946472393,0.524,153.17,153.16,6.5291]
[1719946474581,0.524,153.17,153.15,6.5293]
[1719946477596,0.524,153.17,153.14,22.8546]
[1719946477793,13.964,153.17,153.14,22.8546]
[1719946478597,13.964,153.17,153.11,16.3273]
[1719946478902,13.44,153.13,153.11,16.3273]
[1719946479603,13.44,153.13,153.1,6.5316]
[1719946480585,13.44,153.13,153.09,6.532]
[1719946481107,13.44,153.12,153.08,22.8629]
[1719946481592,26.4175,153.16,153.08,13.44]
[1719946481593,13.44,153.14,153.08,13.44]
[1719946481798,13.44,153.13,153.1,22.8606]
[1719946482598,13.44,153.13,153.1,16.3291]
[1719946483278,13.44,153.13,153.08,6.5323]
[1719946483279,13.44,153.12,153.08,6.5323]
[1719946483479,13.44,153.11,153.08,6.5323]
[1719946485505,13.44,153.11,153.09,6.532]
[1719946486206,13.44,153.1,153.07,22.8645]
[1719946487583,13.44,153.1,153.08,6.5323]
[1719946487785,13.44,153.1,153.07,16.3317]
[1719946487786,13.44,153.11,153.07,22.8645]
[1719946488700,13.44,153.11,153.08,6.5324]
[1719946489382,13.44,153.11,153.07,22.8644]
[1719946489985,13.44,153.11,153.08,6.5324]
[1719946490196,13.44,153.11,153.1,6.5316]
[1719946490405,6.4175,153.16,153.09,16.3298]
[1719946490607,13.44,153.12,153.09,16.3298]
[1719946492398,13.44,153.12,153.08,6.5323]
[1719946492399,19.9708,153.12,153.08,6.5323]
[1719946494318,19.9708,153.12,153.07,21.27922253]
[1719946494497,6.5312,153.11,153.07,19.9728]
[1719946494698,19.9712,153.11,153.07,6.5328]
[1719946495012,6.5319,153.1,153.06,16.3325]
[1719946495215,19.9719,153.1,153.06,16.3325]
[1719946496917,19.9719,153.1,153.06,22.8658]
[1719946497601,19.9731,153.07,153.02,22.8718]
[1719946497806,13.44,153.06,153.02,22.8718]
[1719946498012,13.44,153.06,153.03,6.5345]
[1719946498824,13.44,153.07,153.03,6.5345]
[1719946499324,6.5326,153.08,153.04,22.8694]
[1719946499325,13.44,153.08,153.04,22.8694]
[1719946499915,6.6302,153.11,153.05,6.5335]
[1719946500114,13.44,153.09,153.05,6.5335]
[1719946500510,19.9723,153.09,153.04,36.3094]
[1719946501020,13.44,153.08,153.04,22.8694]
[1719946501521,22.9584,153.11,153.03,6.5344]
[1719946501814,13.44,153.06,153.03,6.5344]
[1719946502015,6.5326,153.08,153.04,6.5341]
[1719946502201,6.5326,153.08,153.03,22.8709]
[1719946502605,6.5322,153.09,153.05,6.5337]
[1719946502929,6.5322,153.09,153.06,6.5333]
[1719946502930,13.44,153.09,153.06,6.5333]
[1719946503311,13.44,153.09,153.05,22.8679]
[1719946503620,6.5317,153.1,153.05,22.8679]
[1719946503818,20.0,153.09,153.05,29.7743]
[1719946504119,13.44,153.11,153.08,6.5323]
[1719946504301,20.0,153.1,153.07,22.8646]
[1719946505720,16.3637,153.13,153.07,22.8646]
[1719946505910,13.44,153.11,153.07,22.8646]
[1719946506101,13.44,153.1,153.07,16.3318]
[1719946510829,19.9717,153.1,153.06,6.5332]
[1719946511006,19.9717,153.1,153.05,6.5337]
[1719946511207,13.44,153.09,153.05,6.5337]
[1719946511411,13.44,153.08,153.05,6.5337]
[1719946512230,13.44,153.09,153.06,6.5332]
[1719946513537,13.44,153.09,153.04,29.7746]
[1719946514121,13.44,153.09,153.06,6.5331]
[1719946514426,20.0,153.12,153.08,6.5323]
[1719946514628,33.44,153.12,153.08,22.8633]
[1719946516235,39.9708,153.12,153.08,22.8633]
[1719946516442,20.0,153.12,153.08,22.8633]
[1719946516623,26.5308,153.12,153.08,22.8633]
[1719946516942,20.0,153.12,153.08,22.8633]
[1719946518122,6.5301,153.14,153.1,6.5314]
[1719946518323,20.0,153.13,153.1,6.5314]
[1719946518529,20.0,153.13,153.09,6.5319]
[1719946522122,26.5304,153.13,153.08,36.3034]
[1719946522452,39.9704,153.13,153.08,36.3034]
[1719946523147,13.44,153.12,153.05,32.7736]
[1719946523332,13.44,153.12,153.07,13.44]
[1719946523851,19.9715,153.11,153.06,19.9732]
[1719946524349,19.9715,153.11,153.07,6.5329]
[1719946525734,6.5315,153.11,153.07,6.5329]
[1719946525933,19.9715,153.11,153.07,6.5329]
[1719946527323,13.44,153.11,153.05,16.3336]
[1719946527546,19.9718,153.1,153.05,22.8671]
[1719946527745,19.9718,153.1,153.05,36.3071]
[1719946527953,19.9718,153.1,153.05,22.8671]
[1719946528122,20.0,153.13,153.05,29.7736]
[1719946528324,13.44,153.1,153.05,16.3336]
[1719946528750,13.44,153.1,153.05,29.7736]
[1719946529751,13.44,153.1,153.07,6.5329]
[1719946530245,26.81500236,153.14,153.05,22.8672]
[1719946530246,19.9724,153.09,153.05,22.8672]
[1719946530824,13.44,153.08,153.05,22.8672]
[1719946531749,19.973,153.07,153.02,16.3374]
[1719946531927,13.44,153.06,153.02,16.3374]
[1719946532345,13.44,153.05,153.01,6.5351]
[1719946532537,13.44,153.05,153.02,6.535]
[1719946532851,13.44,153.06,153.02,6.535]
[1719946533349,19.9735,153.06,153.01,36.3136]
[1719946533557,6.5278,153.09,153.01,36.3136]
[1719946533558,19.9738,153.05,153.01,22.8736]
[1719946533740,19.9738,153.05,153.01,16.3383]
[1719946533948,13.44,153.04,153.01,16.3383]
[1719946535046,13.44,153.04,153.01,22.8737]
[1719946538259,13.44,153.04,153.01,16.3383]
[1719946538260,15.7635,153.04,153.01,16.3383]
[1719946538438,13.44,153.02,152.88,22.0684]
[1719946538641,13.44,152.97,152.91,13.44]
[1719946538839,19.9781,152.95,152.9,22.8903]
[1719946539034,6.5393,152.92,152.88,22.0684]
[1719946539231,13.44,152.95,152.89,19.9805]
[1719946539451,19.9783,152.95,152.9,6.5401]
[1719946539643,13.44,152.94,152.9,6.5401]
[1719946539947,6.5383,152.95,152.9,6.5401]
[1719946540242,13.44,152.94,152.89,16.3512]
[1719946540452,13.44,152.94,152.9,6.5398]
[1719946540931,19.9786,152.94,152.89,22.8917]
[1719946541131,13.44,152.93,152.89,22.8917]
[1719946541353,13.44,152.93,152.9,6.5401]
[1719946543256,13.44,152.93,152.89,22.8917]
[1719946545050,13.44,152.93,152.88,22.4677]
[1719946545357,19.9794,152.92,152.87,6.5414]
[1719946545763,13.44,152.91,152.87,6.5414]
[1719946546090,13.44,152.91,152.88,6.541]
[1719946546763,19.987,152.96,152.85,6.542]
[1719946546764,13.44,152.89,152.85,6.542]
[1719946546945,13.44,152.88,152.85,6.542]
[1719946547640,13.44,152.88,152.83,16.3573]
[1719946547842,13.44,152.87,152.84,6.5424]
[1719946548356,13.44,152.87,152.85,6.5422]
[1719946548656,13.0873,152.9,152.83,16.3573]
[1719946548657,13.44,152.88,152.83,29.7973]
[1719946548853,13.44,152.88,152.85,6.5422]
[1719946549170,13.44,152.87,152.85,6.5422]
[1719946549334,13.44,152.87,152.84,6.5427]
[1719946552843,6.80992612,152.92,152.9,6.5402]
[1719946553178,13.44,152.93,152.89,6.5405]
[1719946553469,13.44,152.92,152.88,6.5409]
[1719946553668,13.44,152.91,152.88,6.5409]
[1719946553880,6.5391,152.93,152.89,6.5406]
[1719946554173,13.44,152.92,152.89,6.5406]
[1719946554551,13.44,152.92,152.88,6.5409]
[1719946554750,13.44,152.91,152.86,6.5416]
[1719946554952,19.9813,152.88,152.84,16.3564]
[1719946555370,13.44,152.87,152.84,16.3564]
[1719946555775,13.44,152.87,152.84,22.8991]
[1719946556569,13.44,152.87,152.85,6.5423]
[1719946556773,13.44,152.88,152.85,6.5423]
[1719946558187,13.44,152.88,152.86,6.5418]
[1719946558365,13.44,152.88,152.85,6.5422]
[1719946559174,6.5403,152.9,152.86,6.5419]
[1719946559473,13.44,152.88,152.86,6.5419]
[1719946560558,13.44,152.88,152.85,6.5423]
[1719946560864,13.44,152.88,152.86,6.5418]
[1719946561877,6.0346,152.92,152.84,32.7123]
[1719946562081,15.9166,152.95,152.89,6.5404]
[1719946562381,13.44,152.93,152.89,6.5404]
[1719946562681,19.9789,152.93,152.89,19.9804]
[1719946563555,15.9166,152.95,152.89,13.44]
[1719946563756,20.0,152.94,152.92,19.9792]
[1719946563990,6.5376,152.96,152.92,22.8871]
[1719946564175,6.5381,152.95,152.9,6.5399]
[1719946564357,6.5377,152.96,152.92,13.44]
[1719946564550,6.5377,152.96,152.92,19.9793]
[1719946564860,6.5381,152.95,152.92,13.44]
[1719946566482,13.44,152.97,152.92,13.44]
[1719946566659,11.90953434,153.0,152.94,6.5384]
[1719946566995,16.3437,152.97,152.89,15.4653]
[1719946567183,6.5396,152.92,152.89,15.4653]
[1719946567381,13.44,152.96,152.89,15.4653]
[1719946567382,12.03735404,153.03,152.91,13.44]
[1719946567583,13.44,153.03,152.97,13.44]
[1719946567752,13.44,153.03,152.98,19.9764]
[1719946567753,19.9747,153.03,152.98,19.9764]
[1719946567957,6.5339,153.05,153.0,19.9758]
[1719946568175,6.5339,153.05,153.01,0.35280262]
[1719946568358,6.5342,153.04,153.0,29.779]
[1719946568655,6.5342,153.04,153.0,13.44]
[1719946568862,19.9751,153.02,152.97,22.8794]
[1719946569078,19.9751,153.02,152.97,36.3194]
[1719946569283,6.5351,153.02,152.97,36.3194]
[1719946569457,19.9751,153.02,152.97,36.3194]
[1719946569867,6.5355,153.01,152.97,36.3194]
[1719946570066,6.5355,153.01,152.97,29.7824]
[1719946570556,6.5355,153.01,152.97,16.3424]
[1719946570757,6.5353,153.02,152.97,36.3194]
[1719946570952,19.9753,153.02,152.98,6.5368]
[1719946571382,6.5347,153.03,152.98,6.5368]
[1719946571587,33.44,153.02,152.98,6.5368]
[1719946571900,20.0,153.02,152.98,19.9768]
[1719946572060,26.5351,153.02,152.98,19.9768]
[1719946572766,20.0,153.02,152.98,6.5368]
[1719946573586,20.0,153.02,152.99,16.3403]
[1719946573762,6.5339,153.05,153.0,19.9758]
[1719946574086,13.44,153.01,152.89,16.4018]
[1719946574386,13.44,153.01,152.93,13.44]
[1719946574387,6.5376,152.96,152.93,13.44]
[1719946574961,6.5373,152.97,152.93,13.44]
[1719946575178,6.5367,152.99,152.95,13.44]
[1719946575382,6.537,152.98,152.93,22.8855]
[1719946575595,6.537,152.98,152.94,13.44]
[1719946575956,19.9764,152.99,152.94,19.9782]
[1719946576358,19.9764,152.99,152.94,6.5382]
[1719946576561,19.9764,152.99,152.94,19.9782]
[1719946577473,6.5369,152.98,152.94,13.44]
[1719946577674,13.44,152.97,152.93,16.3467]
[1719946577882,19.9773,152.97,152.93,16.3467]
[1719946578191,13.44,152.96,152.93,16.3467]
[1719946578371,19.9776,152.96,152.93,16.3467]
[1719946578572,19.9776,152.96,152.92,6.539]
[1719946578770,13.44,152.95,152.91,6.5397]
[1719946579484,13.44,152.95,152.92,6.5392]
[1719946579863,13.44,152.96,152.91,13.44]
[1719946580073,13.44,152.96,152.93,6.5389]
[1719946580589,6.82018592,153.01,152.96,6.5374]
[1719946580783,6.4646,153.02,152.96,6.5374]
[1719946580784,13.44,152.99,152.96,6.5374]
[1719946580964,20.0,152.98,152.96,6.5374]
[1719946581167,20.0,152.98,152.95,6.5379]
[1719946581494,20.0,152.99,152.96,6.5376]
[1719946582198,6.5359,153.0,152.96,6.5376]
[1719946584181,6.5356,153.01,152.96,6.5376]
[1719946584566,20.0,153.0,152.96,6.5376]
[1719946585700,26.536,153.0,152.96,6.5376]
[1719946586208,26.536,153.0,152.84,5.21166343]
[1719946586209,22.7908,152.97,152.84,5.21166343]
[1719946586507,6.5421,152.86,152.81,6.544]